[Event "34rd NATO Championship 2024"]
[Site "Rhodes"]
[Date "2024.10.23"]
[Round "4.43"]
[White "Coulon, Dominic"]
[Black "Steffers, Hendrik"]
[Result "1-0"]
[ECO "D05"]
[WhiteElo "1813"]
[BlackElo "1882"]
[Annotator "NA RC"]
[PlyCount "83"]
[EventDate "2024.09.18"]
[EventType "swiss"]
[EventCountry "GRE"]
[SourceTitle "playchess.com"]
[Source "ChessBase"]
[SourceQuality "1"]
[TimeControl "5400+30"]

1. d4 {[%emt 0:00:14]} d5 {[%emt 0:00:22]} 2. Nf3 {[%emt 0:00:20]} Nf6 {[%emt 0:00:18]} 3. e3 {[%emt 0:00:24]} e6 {[%emt 0:01:06]} 4. Bd3 {[%emt 0:01:39]} c5 {[%emt 0:01:19]} 5. b3 {[%emt 0:00:12]} Nc6 {[%emt 0:00:27]} 6. O-O {[%emt 0:04:29]} cxd4 {[%emt 0:02:11]} 7. exd4 {[%emt 0:00:11]} Bd6 {[%emt 0:03:21]} 8. Bb2 {[%emt 0:00:29]} Bd7 {[%emt 0:03:06]} 9. a3 {[%emt 0:01:04]} O-O {[%emt 0:02:52]} 10. Nbd2 {[%emt 0:00:53]} Ne7 {[%emt 0:06:35]} 11. Ne5 {[%emt 0:01:37]} Bc6 {[%emt 0:03:39]} 12. f4 {[%emt 0:00:51]} Nf5 {[%emt 0:02:13]} 13. Qe2 {[%emt 0:02:35]} h5 {[%emt 0:06:18]} 14. Rae1 {[%emt 0:11:55]} Qe7 {[%emt 0:19:23]} 15. a4 {[%emt 1:11:07]} Rac8 {[%emt 0:03:50]} 16. Nxc6 {[%emt 0:00:00]} Rxc6 {[%emt 0:00:30]} 17. c4 {[%emt 0:00:00]} Qc7 {[%emt 0:03:42]} 18. g3 {[%emt 0:00:00]} Nh6 {[%emt 0:05:27]} 19. c5 {[%emt 0:00:00]} Be7 {[%emt 0:00:19]} 20. Bb5 {[%emt 0:00:00]} h4 {[%emt 0:02:02]} 21. Bxc6 {[%emt 0:00:00]} bxc6 {[%emt 0:00:17]} 22. Nf3 {[%emt 0:00:00]} hxg3 {[%emt 0:00:27]} 23. hxg3 {[%emt 0:00:00]} Ne4 {[%emt 0:01:11]} 24. Qh2 {[%emt 0:00:00]} Qb7 {[%emt 0:06:08]} 25. Ne5 {[%emt 0:00:00]} Bf6 {[%emt 0:02:16]} 26. Rf3 {[%emt 0:00:00]} Bxe5 {[%emt 0:00:48]} 27. fxe5 {[%emt 0:00:00]} Qb4 {[%emt 0:01:05]} 28. Re2 {[%emt 0:00:00]} Nf5 {[%emt 0:00:13]} 29. Rd3 {[%emt 0:00:00]} Nh6 {[%emt 0:03:32]} 30. Qh3 {[%emt 0:00:00]} Ng5 {[%emt 0:05:31]} 31. Qh4 {[%emt 0:00:00]} Ne4 {[%emt 0:00:01]} 32. g4 {[%emt 0:00:00]} Qb8 {[%emt 0:01:23]} 33. Bc1 {[%emt 0:00:00]} Qd8 {[%emt 0:01:54]} 34. Qh5 {[%emt 0:00:00]} Kh7 {[%emt 0:07:01]} 35. g5 {[%emt 0:00:00]} Rg8 {[%emt 0:00:10]} 36. Kh2 {[%emt 0:00:00]} Qf8 {[%emt 0:00:52]} 37. gxh6 {[%emt 0:00:00]} g6 {[%emt 0:00:30]} 38. Qg4 {[%emt 0:00:00]} f5 {[%emt 0:01:21]} 39. exf6 {[%emt 0:00:00]} Qxf6 {[%emt 0:00:37]} 40. Rf3 {[%emt 0:00:00]} Qxd4 {[%emt 0:01:59]} 41. Rf7+ {[%emt 0:00:00]} Kh8 {[%emt 0:00:01]} 42. Bb2 {[%emt 0:00:00]} 1-0

[Event "34rd NATO Championship 2024"]
[Site "Rhodes"]
[Date "2024.10.23"]
[Round "4.44"]
[White "Middaugh, Jon S"]
[Black "Cavinato, Ermes"]
[Result "1-0"]
[ECO "D06"]
[WhiteElo "1877"]
[BlackElo "1630"]
[Annotator "NA RC"]
[PlyCount "106"]
[EventDate "2024.09.18"]
[EventType "swiss"]
[EventCountry "GRE"]
[SourceTitle "playchess.com"]
[Source "ChessBase"]
[SourceQuality "1"]
[TimeControl "5400+30"]

1. d4 {[%emt 0:00:04]} d5 {[%emt 0:00:46]} 2. c4 {[%emt 0:00:11]} Nf6 {[%emt 0:03:00]} 3. cxd5 {[%emt 0:00:28]} Nxd5 {[%emt 0:04:16]} 4. e4 {[%emt 0:00:22]} Nb6 {[%emt 0:03:58]} 5. Nc3 {[%emt 0:01:02]} a6 {[%emt 0:05:03]} 6. h3 {[%emt 0:05:45] D06: Queen's Gambit: Symmetrical and Baltic Defences.} e6 {[%emt 0:06:37]} 7. Be3 {[%emt 0:01:32]} Bb4 {[%emt 0:07:31]} 8. Nf3 {[%emt 0:01:01]} h6 {[%emt 0:05:05]} 9. Bd3 {[%emt 0:01:54]} Bd7 {[%emt 0:07:55]} 10. O-O {[%emt 0:00:50]} Bxc3 {[%emt 0:04:25]} 11. bxc3 {[%emt 0:00:09]} Ba4 {[%emt 0:01:56]} 12. Qe2 {[%emt 0:01:40]} N8d7 {[%emt 0:03:56]} 13. c4 {[%emt 0:04:00]} Nf6 {[%emt 0:08:07]} 14. e5 {[%emt 0:04:25]} Nh7 {[%emt 0:05:59]} 15. Rac1 {[%emt 0:05:26]} Bc6 {[%emt 0:06:27]} 16. Kh2 {[%emt 0:07:05]} Ng5 {[%emt 0:08:00]} 17. Nd2 {[%emt 0:07:10]} Qe7 {[%emt 0:04:48]} 18. f4 {[%emt 0:01:26]} Nh7 {[%emt 0:00:47]} 19. Ne4 {[%emt 0:07:54]} Rb8 {[%emt 0:05:20]} 20. Nc5 {[%emt 0:05:46]} Nd7 {[%emt 0:01:58]} 21. Nb3 {[%emt 0:01:15]} Nb6 {[%emt 0:01:05]} 22. Qg4 {[%emt 0:01:26]} g5 {[%emt 0:01:56]} 23. Bxh7 {[%emt 0:04:11]} Rxh7 {[%emt 0:00:13]} 24. Qh5 {[%emt 0:04:37]} Qf8 {[%emt 0:01:09]} 25. fxg5 {[%emt 0:01:39]} Rg7 {[%emt 0:00:51]} 26. Qxh6 {[%emt 0:04:25]} Qg8 {[%emt 0:00:43]} 27. Qh5 {[%emt 0:02:15]} Rh7 {[%emt 0:00:38]} 28. Qg4 {[%emt 0:00:57]} Qg7 {[%emt 0:00:46]} 29. Nc5 {[%emt 0:02:21]} Ke7 {[%emt 0:00:21]} 30. Qf4 {[%emt 0:01:23]} Rbh8 {[%emt 0:00:38]} 31. Qf6+ {[%emt 0:04:24]} Qxf6 {[%emt 0:00:11]} 32. gxf6+ {[%emt 0:00:47]} Ke8 {[%emt 0:00:13]} 33. Bf4 {[%emt 0:04:25]} Rg8 {[%emt 0:00:36]} 34. g3 {[%emt 0:01:09]} Rh5 {[%emt 0:00:38]} 35. h4 {[%emt 0:01:39]} Nd7 {[%emt 0:01:06]} 36. Nxd7 {[%emt 0:00:39]} Kxd7 {[%emt 0:00:09]} 37. Rfd1 {[%emt 0:01:20]} Bf3 {[%emt 0:00:57]} 38. Rd2 {[%emt 0:00:42]} c6 {[%emt 0:00:08]} 39. Rc3 {[%emt 0:00:42]} Be4 {[%emt 0:00:20]} 40. Re3 {[%emt 0:00:37]} Bf5 {[%emt 0:00:38]} 41. Rb3 {[%emt 0:00:26]} Kc7 {[%emt 0:00:16]} 42. Rdb2 {[%emt 0:03:07]} Rb8 {[%emt 0:00:26]} 43. d5 {[%emt 0:01:11]} cxd5 {[%emt 0:00:57]} 44. cxd5 {[%emt 0:00:20]} b5 {[%emt 0:00:16]} 45. a4 {[%emt 0:01:36]} Kd7 {[%emt 0:01:12]} 46. axb5 {[%emt 0:01:31]} axb5 {[%emt 0:00:07]} 47. d6 {[%emt 0:01:15]} Rhh8 {[%emt 0:01:01]} 48. Rxb5 {[%emt 0:00:19]} Rxb5 {[%emt 0:00:06]} 49. Rxb5 {[%emt 0:00:08]} Rc8 {[%emt 0:00:24]} 50. Rb7+ {[%emt 0:00:29]} Rc7 {[%emt 0:00:58]} 51. Rxc7+ {[%emt 0:00:12]} Ke8 {[%emt 0:01:07]} 52. Rb7 Kd8 {[%emt 0:00:30]} 53. Ra7 {[%emt 0:07:23]} Ke8 1-0

[Event "34rd NATO Championship 2024"]
[Site "Rhodes"]
[Date "2024.10.23"]
[Round "4.45"]
[White "Stuhr, Finn"]
[Black "Steen, Kris"]
[Result "1/2-1/2"]
[ECO "C02"]
[WhiteElo "1790"]
[BlackElo "1876"]
[Annotator "NA RC"]
[PlyCount "93"]
[EventDate "2024.09.18"]
[EventType "swiss"]
[EventCountry "GRE"]
[SourceTitle "playchess.com"]
[Source "ChessBase"]
[SourceQuality "1"]
[TimeControl "5400+30"]

1. e4 {[%emt 0:00:05]} e6 {[%emt 0:00:04]} 2. d4 {[%emt 0:00:07]} d5 {[%emt 0:00:05]} 3. e5 {[%emt 0:00:07]} c5 {[%emt 0:00:03]} 4. c3 {[%emt 0:00:09]} Nc6 {[%emt 0:00:03]} 5. Nf3 {[%emt 0:01:05]} Nge7 {[%emt 0:00:07]} 6. Bd3 {[%emt 0:00:32]} cxd4 {[%emt 0:00:09]} 7. cxd4 {[%emt 0:00:12]} Nf5 {[%emt 0:00:04]} 8. Bxf5 {[%emt 0:00:29]} exf5 {[%emt 0:00:06]} 9. O-O {[%emt 0:00:17]} Be7 {[%emt 0:00:16]} 10. Nc3 {[%emt 0:01:11]} Be6 {[%emt 0:00:09]} 11. Be3 {[%emt 0:00:41]} g5 {[%emt 0:00:43]} 12. Qb3 {[%emt 0:02:08]} Rb8 {[%emt 0:00:53]} 13. Qa4 {[%emt 0:03:34]} f4 {[%emt 0:01:25]} 14. Bd2 {[%emt 0:00:04]} O-O {[%emt 0:07:53]} 15. Ne1 {[%emt 0:03:03]} Qb6 {[%emt 0:08:38]} 16. Nc2 {[%emt 0:04:31]} Rbd8 {[%emt 0:05:13]} 17. Qb5 {[%emt 0:00:45]} Qxb5 {[%emt 0:14:19]} 18. Nxb5 {[%emt 0:00:02]} Rc8 {[%emt 0:00:41]} 19. a3 {[%emt 0:00:40]} a6 {[%emt 0:12:14]} 20. Nc3 {[%emt 0:00:05]} Rfd8 {[%emt 0:47:25]} 21. Ne2 {[%emt 0:02:54]} Nxe5 {[%emt 0:00:30]} 22. Ne1 {[%emt 0:03:07]} Nc6 {[%emt 0:00:30]} 23. g3 {[%emt 0:00:31]} Bh3 {[%emt 0:00:00]} 24. gxf4 {[%emt 0:01:08]} Bxf1 {[%emt 0:00:00]} 25. Kxf1 {[%emt 0:00:02]} g4 {[%emt 0:00:00]} 26. Ng2 {[%emt 0:02:02]} Bf6 {[%emt 0:00:00]} 27. Bc3 {[%emt 1:14:29]} Kg7 {[%emt 0:00:00]} 28. Rd1 {[%emt 0:00:00]} Na7 {[%emt 0:00:00]} 29. Ne3 {[%emt 0:00:00]} h5 {[%emt 0:00:00]} 30. a4 {[%emt 0:00:00]} Nc6 {[%emt 0:00:00]} 31. Kg2 {[%emt 0:00:00]} Ne7 {[%emt 0:00:00]} 32. f3 {[%emt 0:00:00]} gxf3+ {[%emt 0:00:00]} 33. Kxf3 {[%emt 0:00:00]} Kh6 {[%emt 0:00:00]} 34. Rd2 {[%emt 0:00:00]} Kg6 {[%emt 0:00:00]} 35. Bb4 {[%emt 0:00:00]} Nf5 {[%emt 0:00:00]} 36. Nf1 {[%emt 0:00:00]} Rc4 {[%emt 0:00:00]} 37. Ba5 {[%emt 0:00:00]} Rd7 {[%emt 0:00:00]} 38. b3 {[%emt 0:00:00]} Rc6 {[%emt 0:00:00]} 39. Nfg3 {[%emt 0:00:00]} Nxg3 {[%emt 0:00:00]} 40. hxg3 {[%emt 0:00:00]} Bd8 {[%emt 0:00:00]} 41. Bc3 {[%emt 0:00:00]} Rdc7 {[%emt 0:00:00]} 42. Rd3 {[%emt 0:00:00]} Re6 {[%emt 0:00:00]} 43. Ng1 {[%emt 0:00:00]} f5 {[%emt 0:00:00]} 44. Bb4 {[%emt 0:00:00]} h4 {[%emt 0:00:00]} 45. g4 {[%emt 0:00:00]} Rc1 {[%emt 0:00:00]} 46. Nh3 {[%emt 0:00:00]} fxg4+ {[%emt 0:00:00]} 47. Kxg4 {[%emt 0:10:00]} 1/2-1/2

[Event "34rd NATO Championship 2024"]
[Site "Rhodes"]
[Date "2024.10.23"]
[Round "4.46"]
[White "Bublys, Vaidotas"]
[Black "Papler, Peter"]
[Result "0-1"]
[ECO "B07"]
[WhiteElo "1872"]
[BlackElo "1780"]
[Annotator "NA RC"]
[PlyCount "46"]
[EventDate "2024.09.18"]
[EventType "swiss"]
[EventCountry "GRE"]
[SourceTitle "playchess.com"]
[Source "ChessBase"]
[SourceQuality "1"]
[TimeControl "5400+30"]

1. e4 {[%emt 0:00:22]} d6 {[%emt 0:00:05]} 2. d4 {[%emt 0:00:27]} Nf6 {[%emt 0:00:10]} 3. f3 {[%emt 0:00:39]} Nbd7 {[%emt 0:00:16]} 4. Nc3 {[%emt 0:00:44]} c6 {[%emt 0:00:22]} 5. Bc4 {[%emt 0:01:51]} Qc7 {[%emt 0:00:14]} 6. Nge2 {[%emt 0:00:59]} e5 {[%emt 0:00:19]} 7. Be3 {[%emt 0:01:24]} Be7 {[%emt 0:01:08]} 8. Qd2 {[%emt 0:02:04]} Nf8 {[%emt 0:02:25]} 9. Ng3 {[%emt 0:07:13]} Be6 {[%emt 0:02:06]} 10. Bb3 {[%emt 0:03:49]} Ng6 {[%emt 0:03:11]} 11. Nf5 {[%emt 0:02:00]} O-O {[%emt 0:00:44]} 12. O-O-O {[%emt 0:00:44]} b5 {[%emt 0:03:16]} 13. d5 {[%emt 0:13:59]} Bd7 {[%emt 0:01:23]} 14. Nxe7+ {[%emt 0:00:57]} Nxe7 {[%emt 0:00:20]} 15. dxc6 {[%emt 1:00:48]} Bxc6 {[%emt 0:02:22]} 16. Qxd6 {[%emt 0:00:00]} Qxd6 {[%emt 0:01:20]} 17. Rxd6 {[%emt 0:00:00]} a5 {[%emt 0:00:24]} 18. a4 {[%emt 0:00:00]} b4 {[%emt 0:04:41]} 19. Nb5 {[%emt 0:00:00]} Bxb5 {[%emt 0:03:45]} 20. axb5 {[%emt 0:00:00]} a4 {[%emt 0:00:05]} 21. Bc4 {[%emt 0:00:00]} Rfc8 {[%emt 0:01:39]} 22. b3 {[%emt 0:00:00]} axb3 {[%emt 0:01:25]} 23. Bxb3 {[%emt 0:00:00]} Ra1+ {[%emt 0:00:21]} 0-1

[Event "34rd NATO Championship 2024"]
[Site "Rhodes"]
[Date "2024.10.23"]
[Round "4.47"]
[White "Woolf, Ben"]
[Black "Simard, Francois"]
[Result "1-0"]
[ECO "C29"]
[WhiteElo "1747"]
[BlackElo "1868"]
[Annotator "NA RC"]
[PlyCount "39"]
[EventDate "2024.09.18"]
[EventType "swiss"]
[EventCountry "GRE"]
[SourceTitle "playchess.com"]
[Source "ChessBase"]
[SourceQuality "1"]
[TimeControl "5400+30"]

1. e4 {[%emt 0:00:04]} e5 {[%emt 0:00:51]} 2. Nc3 {[%emt 0:00:14]} Nf6 {[%emt 0:00:51]} 3. f4 {[%emt 0:00:33]} Nc6 {[%emt 0:06:20]} 4. fxe5 {[%emt 0:00:16]} Nxe5 {[%emt 0:06:10]} 5. d4 {[%emt 0:00:17]} Nc6 {[%emt 0:00:17]} 6. e5 {[%emt 0:00:35]} Ng8 {[%emt 0:02:23]} 7. Nf3 {[%emt 0:00:54]} d5 {[%emt 0:08:08]} 8. Bd3 {[%emt 0:08:24]} Bg4 {[%emt 0:04:03]} 9. Be3 {[%emt 0:02:30]} Bb4 {[%emt 0:07:07]} 10. O-O {[%emt 0:01:01]} f6 {[%emt 0:02:36]} 11. h3 {[%emt 0:03:12]} Bh5 {[%emt 0:10:55]} 12. g4 {[%emt 0:01:10]} Bf7 {[%emt 0:01:31]} 13. Bb5 {[%emt 0:05:46]} Bxc3 {[%emt 0:17:53]} 14. bxc3 {[%emt 0:00:23]} Be6 {[%emt 0:00:32]} 15. Bxc6+ {[%emt 0:13:13]} bxc6 {[%emt 0:01:21]} 16. Qe2 {[%emt 0:01:04]} f5 {[%emt 0:05:11]} 17. Ng5 {[%emt 0:03:39]} Bc8 {[%emt 0:03:09]} 18. e6 {[%emt 0:03:28]} Nh6 {[%emt 0:02:00]} 19. gxf5 {[%emt 0:01:54]} O-O {[%emt 0:00:16]} 20. Qh5 {[%emt 0:11:02]} 1-0

[Event "34rd NATO Championship 2024"]
[Site "Rhodes"]
[Date "2024.10.23"]
[Round "4.48"]
[White "Smit, Jan"]
[Black "O`Byrne, Daniel"]
[Result "1/2-1/2"]
[ECO "A04"]
[WhiteElo "1866"]
[BlackElo "1748"]
[Annotator "NA RC"]
[PlyCount "36"]
[EventDate "2024.09.18"]
[EventType "swiss"]
[EventCountry "GRE"]
[SourceTitle "playchess.com"]
[Source "ChessBase"]
[SourceQuality "1"]
[TimeControl "5400+30"]

1. Nf3 {[%emt 1:31:00]} c5 {[%emt 1:31:00]} 2. c3 {[%emt 0:00:00]} Nc6 {[%emt 0:00:00]} 3. d4 {[%emt 0:00:00]} cxd4 {[%emt 0:00:00]} 4. Nxd4 {[%emt 0:01:30]} Nxd4 {[%emt 0:01:30]} 5. Qxd4 {[%emt 0:00:00]} d6 {[%emt 0:00:00]} 6. Bg5 {[%emt 0:00:00]} Bd7 {[%emt 0:00:00]} 7. Nd2 {[%emt 0:00:00]} Qa5 {[%emt 0:00:00]} 8. Bh4 {[%emt 0:00:00]} Rc8 {[%emt 0:00:00]} 9. Nb3 {[%emt 0:00:00]} Qh5 {[%emt 0:00:00]} 10. e3 {[%emt 0:00:00]} a6 {[%emt 0:00:00]} 11. Be2 {[%emt 0:00:00]} Qg6 {[%emt 0:00:00]} 12. O-O {[%emt 0:00:00]} Bc6 {[%emt 0:00:00]} 13. Qg4 {[%emt 0:00:00]} e6 {[%emt 0:04:30]} 14. Rad1 {[%emt 0:00:00]} Nf6 {[%emt 0:00:00]} 15. Qg3 {[%emt 0:00:00]} Qxg3 {[%emt 0:00:00]} 16. Bxg3 {[%emt 0:00:00]} Ne4 {[%emt 0:00:00]} 17. Bf3 {[%emt 0:00:00]} Nxg3 {[%emt 0:00:00]} 18. Bxc6+ {[%emt 0:00:00]} Rxc6 {[%emt 0:00:00]} 1/2-1/2

[Event "34rd NATO Championship 2024"]
[Site "Rhodes"]
[Date "2024.10.24"]
[Round "5.1"]
[White "Alexakis, Dimitris"]
[Black "Reizniece-Ozola, Dana"]
[Result "1-0"]
[ECO "B55"]
[WhiteElo "2504"]
[BlackElo "2255"]
[Annotator "RC"]
[PlyCount "93"]
[EventDate "2024.09.18"]
[EventType "swiss"]
[EventCountry "GRE"]
[SourceTitle "playchess.com"]
[Source "ChessBase"]
[SourceQuality "1"]
[TimeControl "5400+30"]

1. e4 {[%emt 0:05:39]} c5 {[%emt 0:00:14]} 2. Nf3 {[%emt 0:00:18]} d6 {[%emt 0:00:08]} 3. d4 {[%emt 0:01:35]} cxd4 {[%emt 0:00:09]} 4. Nxd4 {[%emt 0:00:05]} Nf6 {[%emt 0:00:26]} 5. f3 {[%emt 0:00:18]} e5 {[%emt 0:00:26]} 6. Nb3 {[%emt 0:01:38]} Be6 {[%emt 0:00:34]} 7. c4 {[%emt 0:01:21]} a5 {[%emt 0:00:46]} 8. Be3 {[%emt 0:00:28]} Be7 {[%emt 0:01:55]} 9. Nc3 {[%emt 0:01:20]} Nc6 {[%emt 0:01:33]} 10. Nd5 {[%emt 0:09:25]} Nd7 {[%emt 0:00:21]} 11. Nxe7 {[%emt 0:03:12]} Qxe7 {[%emt 0:00:17]} 12. Be2 {[%emt 0:00:27]} O-O {[%emt 0:00:59]} 13. O-O {[%emt 0:01:45]} a4 {[%emt 0:02:39]} 14. Nd2 {[%emt 0:00:48]} Nc5 {[%emt 0:03:34]} 15. Nb1 {[%emt 0:00:48]} Na5 {[%emt 0:01:38]} 16. Na3 {[%emt 0:01:11]} b6 {[%emt 0:04:39]} 17. Qd2 {[%emt 0:07:57]} h6 {[%emt 0:01:50]} 18. Rfd1 {[%emt 0:03:00]} Rfd8 {[%emt 0:02:29]} 19. Qb4 {[%emt 0:04:22]} Rab8 {[%emt 0:15:53]} 20. Nb5 {[%emt 0:15:20]} f5 {[%emt 0:13:35]} 21. exf5 {[%emt 0:10:01]} Bxf5 {[%emt 0:01:35]} 22. Rd2 {[%emt 0:07:29]} Nc6 {[%emt 0:13:33]} 23. Qc3 {[%emt 0:01:59]} Na7 {[%emt 0:07:28]} 24. Na3 {[%emt 0:03:04]} Kh8 {[%emt 0:15:24]} 25. b4 {[%emt 0:05:14]} axb3 {[%emt 0:00:36]} 26. axb3 {[%emt 0:00:06]} Ne6 {[%emt 0:03:42]} 27. Rad1 {[%emt 0:05:49]} Qc7 {[%emt 0:02:42]} 28. Qb2 {[%emt 0:04:00]} Bg6 {[%emt 0:02:50]} 29. Bf1 {[%emt 0:01:07]} Be8 {[%emt 0:01:05]} 30. Rc1 {[%emt 0:03:19]} Qf7 {[%emt 0:00:44]} 31. b4 {[%emt 0:01:13]} b5 {[%emt 0:00:50]} 32. Rcd1 {[%emt 0:00:48]} Qc7 {[%emt 0:00:31]} 33. Qa2 {[%emt 0:00:36]} bxc4 {[%emt 0:00:28]} 34. Qxc4 {[%emt 0:01:04]} Qe7 {[%emt 0:00:09]} 35. Qc3 {[%emt 0:00:41]} Nf4 {[%emt 0:01:23]} 36. Re1 {[%emt 0:00:23]} Qb7 {[%emt 0:00:21]} 37. Bxf4 {[%emt 0:00:27]} exf4 {[%emt 0:00:02]} 38. Rd4 {[%emt 0:00:15]} Rdc8 {[%emt 0:01:15]} 39. Qd2 {[%emt 0:00:36]} Nc6 {[%emt 0:00:26]} 40. Rxf4 {[%emt 0:00:04]} Nxb4 {[%emt 0:00:32]} 41. Nc4 {[%emt 0:00:41]} d5 {[%emt 0:00:27]} 42. Ne5 {[%emt 0:00:47]} Qb6+ {[%emt 0:00:18]} 43. Kh1 {[%emt 0:00:11]} Rc2 {[%emt 0:00:44]} 44. Rf8+ {[%emt 0:00:21]} Kh7 {[%emt 0:00:03]} 45. Bd3+ {[%emt 0:00:25]} Nxd3 {[%emt 0:00:45]} 46. Qxd3+ {[%emt 0:00:44]} Bg6 {[%emt 0:00:05]} 47. Nxg6 {[%emt 0:00:59]} 1-0

[Event "34rd NATO Championship 2024"]
[Site "Rhodes"]
[Date "2024.10.24"]
[Round "5.2"]
[White "Pedersen, Finn"]
[Black "Rahmanidis, Petros"]
[Result "0-1"]
[ECO "A48"]
[WhiteElo "2282"]
[BlackElo "2219"]
[Annotator "RC"]
[PlyCount "86"]
[EventDate "2024.09.18"]
[EventType "swiss"]
[EventCountry "GRE"]
[SourceTitle "playchess.com"]
[Source "ChessBase"]
[SourceQuality "1"]
[TimeControl "5400+30"]

1. Nf3 {[%emt 0:00:16]} Nf6 {[%emt 0:00:29]} 2. d4 {[%emt 0:00:25]} g6 {[%emt 0:00:31]} 3. Bf4 {[%emt 0:00:19]} Bg7 {[%emt 0:00:30]} 4. e3 {[%emt 0:00:12]} O-O {[%emt 0:00:23]} 5. Nbd2 {[%emt 0:00:46]} d6 {[%emt 0:00:26]} 6. h3 {[%emt 0:00:22]} Nfd7 {[%emt 0:00:12]} 7. c3 {[%emt 0:02:13]} e5 {[%emt 0:02:46]} 8. dxe5 {[%emt 0:00:41]} dxe5 {[%emt 0:00:13]} 9. Bg5 {[%emt 0:00:25]} Qe8 {[%emt 0:00:43]} 10. e4 {[%emt 0:00:24]} h6 {[%emt 0:08:34]} 11. Be3 {[%emt 0:04:22]} f5 {[%emt 0:13:55]} 12. Nb3 {[%emt 0:01:05]} f4 {[%emt 0:05:58]} 13. Bc5 {[%emt 0:01:32]} Nxc5 {[%emt 0:02:13]} 14. Nxc5 {[%emt 0:00:06]} Kh8 {[%emt 0:00:59]} 15. Bc4 {[%emt 0:04:05]} Qe7 {[%emt 0:03:40]} 16. Nd3 {[%emt 0:01:33]} a5 {[%emt 0:11:07]} 17. Qe2 {[%emt 0:10:04]} Nd7 {[%emt 0:01:13]} 18. a3 {[%emt 0:02:16]} Nb6 {[%emt 0:07:10]} 19. Ba2 {[%emt 0:04:17]} Bd7 {[%emt 0:00:08]} 20. O-O-O {[%emt 0:10:22]} Ba4 {[%emt 0:03:33]} 21. Rd2 {[%emt 0:01:57]} Rad8 {[%emt 0:11:16]} 22. Kb1 {[%emt 0:10:31]} Bb5 {[%emt 0:03:09]} 23. Ndxe5 {[%emt 0:06:02]} Bxe2 {[%emt 0:02:10]} 24. Nxg6+ {[%emt 0:00:11]} Kh7 {[%emt 0:00:10]} 25. Nxe7 {[%emt 0:00:06]} Bxf3 {[%emt 0:00:18]} 26. Rxd8 {[%emt 0:00:21]} Bxe4+ {[%emt 0:00:20]} 27. Ka1 {[%emt 0:01:04]} Rxd8 {[%emt 0:00:09]} 28. Re1 {[%emt 0:01:14]} Bc2 {[%emt 0:01:59]} 29. Rc1 {[%emt 0:02:35]} Bf6 {[%emt 0:08:37]} 30. Ng8 {[%emt 0:00:38]} Bg5 {[%emt 0:01:53]} 31. h4 {[%emt 0:07:11]} Bxh4 {[%emt 0:02:07]} 32. g3 {[%emt 0:03:52]} fxg3 {[%emt 0:00:15]} 33. fxg3 {[%emt 0:00:05]} Bg5 {[%emt 0:00:36]} 34. Rxc2 {[%emt 0:00:21]} Rd1+ {[%emt 0:00:08]} 35. Bb1 {[%emt 0:00:04]} Kxg8 {[%emt 0:00:06]} 36. Rf2 {[%emt 0:00:35]} Kg7 {[%emt 0:00:41]} 37. Ka2 {[%emt 0:00:07]} Rd2 {[%emt 0:01:17]} 38. Rf3 {[%emt 0:00:34]} Nc4 {[%emt 0:01:01]} 39. Be4 {[%emt 0:03:09]} Rxb2+ {[%emt 0:00:59]} 40. Ka1 {[%emt 0:00:06]} Rb3 {[%emt 0:01:09]} 41. Rd3 {[%emt 0:00:59]} Rxa3+ {[%emt 0:00:34]} 42. Kb1 {[%emt 0:00:06]} Nd2+ {[%emt 0:00:44]} 43. Kb2 {[%emt 0:00:29]} Rb3+ {[%emt 0:00:32]} 0-1

[Event "34rd NATO Championship 2024"]
[Site "Rhodes"]
[Date "2024.10.24"]
[Round "5.3"]
[White "Michalowski, Patryk"]
[Black "Stein, Robert"]
[Result "0-1"]
[ECO "C54"]
[WhiteElo "2054"]
[BlackElo "2409"]
[Annotator "RC"]
[PlyCount "114"]
[EventDate "2024.09.18"]
[EventType "swiss"]
[EventCountry "GRE"]
[SourceTitle "playchess.com"]
[Source "ChessBase"]
[SourceQuality "1"]
[TimeControl "5400+30"]

1. e4 {[%emt 0:00:03]} e5 {[%emt 0:00:30]} 2. Nf3 {[%emt 0:00:08]} Nc6 {[%emt 0:00:33]} 3. Bc4 {[%emt 0:00:08]} Bc5 {[%emt 0:00:27]} 4. c3 {[%emt 0:00:09]} Nf6 {[%emt 0:00:05]} 5. d3 {[%emt 0:00:07]} d6 {[%emt 0:02:26]} 6. O-O {[%emt 0:00:26]} a5 {[%emt 0:01:09]} 7. Re1 {[%emt 0:02:53]} O-O {[%emt 0:03:53]} 8. h3 {[%emt 0:00:47]} Ba7 {[%emt 0:04:38]} 9. Nbd2 {[%emt 0:04:39]} Be6 {[%emt 0:02:47]} 10. Bxe6 {[%emt 0:04:39]} fxe6 {[%emt 0:00:08]} 11. Nf1 {[%emt 0:00:42]} Nh5 {[%emt 0:09:43]} 12. Be3 {[%emt 0:02:40]} Nf4 {[%emt 0:03:37]} 13. Bxa7 {[%emt 0:02:35]} Rxa7 {[%emt 0:00:56]} 14. Re3 {[%emt 0:08:29]} a4 {[%emt 0:06:25]} 15. N1h2 {[%emt 0:03:09]} b5 {[%emt 0:12:38]} 16. d4 {[%emt 0:03:57]} exd4 {[%emt 0:02:45]} 17. cxd4 {[%emt 0:00:24]} Na5 {[%emt 0:06:13]} 18. b3 {[%emt 0:01:26]} c5 {[%emt 0:04:12]} 19. bxa4 {[%emt 0:08:28]} b4 {[%emt 0:03:45]} 20. dxc5 {[%emt 0:09:01]} dxc5 {[%emt 0:00:42]} 21. Qc2 {[%emt 0:00:10]} c4 {[%emt 0:04:19]} 22. Rd1 {[%emt 0:03:43]} Rd7 {[%emt 0:04:10]} 23. Rxd7 {[%emt 0:00:11]} Qxd7 {[%emt 0:00:04]} 24. Ne5 {[%emt 0:00:37]} Qc7 {[%emt 0:05:40]} 25. Nhf3 {[%emt 0:00:17]} Rc8 {[%emt 0:01:39]} 26. g3 {[%emt 0:07:46]} Nxh3+ {[%emt 0:06:32]} 27. Kg2 {[%emt 0:02:47]} Ng5 {[%emt 0:00:05]} 28. Nxg5 {[%emt 0:00:09]} Qxe5 {[%emt 0:00:05]} 29. f4 {[%emt 0:00:42]} Qd4 {[%emt 0:04:10]} 30. e5 {[%emt 0:01:02]} g6 {[%emt 0:00:30]} 31. Kf3 {[%emt 0:03:27]} Rd8 {[%emt 0:02:11]} 32. Ne4 {[%emt 0:00:33]} Qd1+ {[%emt 0:02:50]} 33. Qe2 {[%emt 0:05:34]} c3 {[%emt 0:02:35]} 34. Nxc3 {[%emt 0:01:31]} bxc3 {[%emt 0:01:02]} 35. Qxd1 {[%emt 0:00:07]} Rxd1 {[%emt 0:00:04]} 36. Rxc3 {[%emt 0:00:05]} Rd4 {[%emt 0:03:21]} 37. Rc8+ {[%emt 0:01:35]} Kg7 {[%emt 0:00:41]} 38. Rc7+ {[%emt 0:00:07]} Kh6 {[%emt 0:01:14]} 39. Re7 {[%emt 0:00:47]} Rxa4 {[%emt 0:00:32]} 40. Rxe6 {[%emt 0:00:09]} Rxa2 {[%emt 0:01:14]} 41. f5 {[%emt 0:00:43]} Nb3 {[%emt 0:00:00]} 42. Rd6 {[%emt 0:00:47]} Nd2+ {[%emt 0:00:13]} 43. Kg4 {[%emt 0:01:59]} Ra4+ {[%emt 0:00:04]} 44. Kh3 {[%emt 0:00:13]} Ne4 {[%emt 0:00:28]} 45. Rb6 {[%emt 0:00:47]} Ng5+ {[%emt 0:00:15]} 46. Kg2 {[%emt 0:00:12]} Re4 {[%emt 0:00:15]} 47. fxg6 {[%emt 0:00:28]} hxg6 {[%emt 0:00:06]} 48. Rb2 {[%emt 0:01:11]} Rxe5 {[%emt 0:00:06]} 49. Ra2 {[%emt 0:00:16]} Rc5 {[%emt 0:00:05]} 50. Rb2 {[%emt 0:00:41]} Rc3 {[%emt 0:00:04]} 51. Rb4 {[%emt 0:00:50]} Rc2+ {[%emt 0:00:09]} 52. Kf1 {[%emt 0:00:06]} Kg7 {[%emt 0:00:15]} 53. Rb7+ {[%emt 0:00:13]} Kf6 {[%emt 0:00:05]} 54. Rb6+ {[%emt 0:00:10]} Ne6 {[%emt 0:00:32]} 55. Rb5 {[%emt 0:00:25]} g5 {[%emt 0:00:09]} 56. Ra5 {[%emt 0:00:23]} Nc5 {[%emt 0:00:07]} 57. Ra3 {[%emt 0:00:18]} Kf5 {[%emt 0:00:08]} 0-1